bitfinex/quotes_SOLUSD_20260102
["timestamp","ask_amount","ask_price","bid_price","bid_amount"]
[1767384241862,0.65766652,131.88,131.84,7.58479539]
[1767384242167,0.65766652,131.87,131.83,8.24050285]
[1767384242368,6.19403211,131.87,131.83,7.58530252]
[1767384242674,6.19403211,131.87,131.83,8.24050285]
[1767384242879,0.65766652,131.87,131.83,8.24050285]
[1767384243768,5.53636559,131.88,131.84,0.65520033]
[1767384243970,0.65766652,131.9,131.85,6.19156592]
[1767384244172,6.2602703,131.89,131.85,0.65520033]
[1767384244376,0.65766652,131.89,131.85,0.65520033]
[1767384244768,6.19403211,131.89,131.85,0.65520033]
[1767384244967,0.65766652,131.89,131.85,0.65520033]
[1767384245163,0.65766652,131.89,131.85,8.23926271]
[1767384246681,0.65766652,131.87,131.84,7.58476539]
[1767384246984,6.19403211,131.87,131.83,8.24055921]
[1767384247181,6.19403211,131.87,131.84,7.58493408]
[1767384247378,0.65766652,131.88,131.85,7.58430263]
[1767384247679,6.19403211,131.92,131.87,0.65520033]
[1767384247986,6.28007908,131.91,131.87,0.65520033]
[1767384248205,5.62241256,131.9,131.87,0.65520033]
[1767384248497,0.65766652,131.91,131.87,0.65520033]
[1767384248792,5.62705975,131.9,131.87,0.65520033]
[1767384249078,5.53636559,131.9,131.87,0.65520033]
[1767384249283,5.63170097,131.89,131.87,0.65520033]
[1767384249585,6.19403211,131.9,131.85,7.58416161]
[1767384249759,11.16908335,131.89,131.86,0.65520033]
[1767384249959,5.63271776,131.88,131.86,0.65520033]
[1767384250161,5.53636559,131.89,131.86,0.65520033]
[1767384250369,5.63841385,131.88,131.86,0.65520033]
[1767384250673,5.53636559,131.89,131.86,0.65520033]
[1767384250986,5.63907298,131.88,131.86,0.65520033]
[1767384251180,5.53636559,131.89,131.86,0.65520033]
[1767384251481,5.64203947,131.88,131.86,0.65520033]
[1767384251681,5.53636559,131.89,131.86,0.65520033]
[1767384251857,5.64243201,131.88,131.86,0.65520033]
[1767384252060,5.53636559,131.89,131.86,0.65520033]
[1767384252268,5.64243346,131.88,131.86,0.65520033]
[1767384252470,5.64499761,131.87,131.86,0.65520033]
[1767384252787,5.64499761,131.87,131.84,8.23992046]
[1767384252958,6.19403211,131.89,131.84,8.23992046]
[1767384252959,0.65766652,131.89,131.84,8.23992046]
[1767384253159,11.18182401,131.88,131.84,8.23992046]
[1767384253359,5.64545842,131.87,131.84,8.23992046]
[1767384253562,5.53636559,131.88,131.84,8.23992046]
[1767384253763,5.64528705,131.87,131.84,8.23992046]
[1767384254064,5.53636559,131.88,131.84,8.23992046]
[1767384254264,11.18170306,131.87,131.84,0.65520033]
[1767384254460,5.53636559,131.87,131.84,0.65520033]
[1767384254672,6.19403211,131.87,131.83,7.58528957]
[1767384254988,6.19403211,131.87,131.83,8.2404899]
[1767384255186,5.53636559,131.86,131.83,0.65520033]
[1767384255359,5.53636559,131.86,131.83,8.24071585]
[1767384255563,0.65766652,131.88,131.84,0.65520033]
[1767384255787,5.53636559,131.86,131.83,0.65520033]
[1767384255992,0.65766652,131.87,131.83,0.65520033]
[1767384256171,11.18107202,131.86,131.83,0.65520033]
[1767384256371,5.53636559,131.86,131.83,0.65520033]
[1767384256590,3.07192179,131.86,131.82,8.24106422]
[1767384256770,2.41425527,131.85,131.82,0.65520033]
[1767384257078,3.07192179,131.83,131.78,0.65520033]
[1767384257278,2.41425527,131.81,131.78,0.65520033]
[1767384257859,2.41425527,131.82,131.78,8.24359952]
[1767384258269,2.41425527,131.82,131.79,0.65520033]
[1767384258581,5.54652015,131.82,131.79,0.65520033]
[1767384259282,5.54652015,131.81,131.78,0.65520033]
[1767384259672,0.65766652,131.82,131.78,0.65520033]
[1767384259673,6.20418667,131.82,131.78,0.65520033]
[1767384260263,6.20418667,131.82,131.78,8.24352021]
[1767384260486,5.54652015,131.82,131.79,0.65520033]
[1767384262791,6.20418667,131.82,131.79,0.65520033]
[1767384263188,6.20418667,131.82,131.78,0.65520033]
[1767384263490,6.20418667,131.81,131.77,8.24391408]
[1767384266585,0.65766652,131.81,131.78,0.65520033]
[1767384267177,6.20418667,131.8,131.76,8.24449928]
[1767384267371,6.20418667,131.8,131.77,0.71444463]
[1767384267988,0.70026017,131.79,131.75,0.71444463]
[1767384268189,5.54652015,131.78,131.75,0.71444463]
[1767384268980,5.54652015,131.78,131.75,8.30453148]
[1767384269180,6.24678032,131.79,131.75,8.30453148]
[1767384271387,0.65809246,131.78,131.75,8.30453148]
[1767384271699,6.20461261,131.78,131.74,8.30086495]
[1767384271900,6.20461261,131.78,131.74,0.71042286]
[1767384272105,0.67020437,131.77,131.75,0.4566]
[1767384272281,0.67020437,131.77,131.72,19.38652015]
[1767384272282,5.78233385,131.76,131.72,0.71042286]
[1767384272796,0.2358137,131.76,131.72,0.71042286]
[1767384273200,0.2358137,131.76,131.73,7.5912478]
[1767384273701,0.67020437,131.77,131.73,8.30167066]
[1767384274298,0.2358137,131.76,131.73,7.5912478]
[1767384274496,0.2358137,131.76,131.73,8.30167066]
[1767384274705,6.21672452,131.77,131.73,8.30167066]
[1767384275286,0.67020437,131.77,131.73,8.30167066]
[1767384276601,0.2358137,131.76,131.73,7.5912478]
[1767384276794,0.2358137,131.76,131.71,19.60652015]
[1767384277103,0.24011417,131.74,131.71,0.2]
[1767384277307,0.24011417,131.74,131.71,7.79215397]
[1767384277888,0.24011417,131.74,131.71,8.50257683]
[1767384278496,2.65402381,131.75,131.71,8.50257683]
[1767384279586,0.2358137,131.75,131.72,0.71042286]
[1767384279786,3.08841448,131.77,131.72,0.71042286]
[1767384280301,0.67020437,131.77,131.73,0.71042286]
[1767384281198,3.08841448,131.77,131.73,0.71042286]
[1767384281508,0.67020437,131.77,131.73,8.30148556]
[1767384283695,3.08841448,131.77,131.73,8.30148556]
[1767384283919,7.58752715,131.8,131.73,8.30148556]
[1767384283920,2.65402381,131.78,131.74,0.71042286]
[1767384284500,0.66586046,131.77,131.74,0.71042286]
[1767384285914,0.66586046,131.77,131.74,8.30087433]
[1767384286111,21.44729244,131.8,131.71,0.91042286]
[1767384286112,0.24432905,131.74,131.71,0.91042286]
[1767384286302,0.24432905,131.74,131.71,8.50252404]
[1767384286503,3.08841448,131.75,131.71,8.50252404]
[1767384286703,2.41821011,131.74,131.71,8.50252404]
[1767384287016,0.66586046,131.73,131.71,0.2]
[1767384287198,3.08407057,131.73,131.71,0.2]
[1767384287399,3.08407057,131.73,131.69,8.50356097]
[1767384288804,3.08407057,131.73,131.7,0.71042286]
[1767384288805,0.66586046,131.73,131.7,0.71042286]
[1767384291218,0.66586046,131.73,131.7,8.3032141]
[1767384294016,3.08407057,131.73,131.7,8.3032141]
[1767384294626,3.08407057,131.73,131.7,7.59279124]
[1767384295098,0.04211417,131.72,131.69,0.2]
[1767384295306,0.04211417,131.72,131.69,7.79356668]
[1767384296517,0.04211417,131.72,131.69,8.50398954]
[1767384296699,0.60840003,131.74,131.7,0.71042286]
[1767384297015,3.02151613,131.73,131.7,0.71042286]
[1767384297212,0.10404306,131.72,131.69,8.50398954]
[1767384298215,2.41821011,131.73,131.69,8.50398954]
[1767384298417,3.02661014,131.73,131.69,8.50398954]
[1767384299126,2.51721011,131.72,131.69,0.2]
[1767384300234,0.10404306,131.7,131.67,8.30970944]
[1767384300535,0.10404306,131.7,131.66,8.31053848]
[1767384300703,0.10404306,131.7,131.67,7.59472027]
[1767384300904,0.10404306,131.7,131.67,8.31017609]
[1767384301103,4.18949499,131.71,131.67,8.31017609]
[1767384301812,0.40840003,131.72,131.68,8.30957922]
[1767384302827,0.40840003,131.73,131.69,0.71545582]
[1767384303028,25.63928716,131.76,131.71,0.71545582]
[1767384303325,0.40840003,131.77,131.73,0.71545582]
[1767384303511,4.18949499,131.77,131.73,0.71545582]
[1767384303922,0.40840003,131.77,131.73,8.30668528]
[1767384304314,0.40840003,131.77,131.73,0.71545582]
[1767384304520,0.40840003,131.77,131.72,12.08815568]
[1767384304733,3.88009496,131.76,131.72,0.71545582]
[1767384305835,0.099,131.76,131.72,0.71545582]
[1767384306136,0.099,131.76,131.72,8.30728381]
[1767384311218,0.4022736,131.73,131.69,0.71545582]
[1767384311444,4.18336856,131.73,131.69,8.30883217]
[1767384311743,3.78109496,131.72,131.69,0.71545582]
[1767384311948,4.18336856,131.73,131.69,8.30900476]
[1767384312438,0.4022736,131.73,131.69,8.30900476]
[1767384312645,4.18336856,131.73,131.69,8.30900476]
[1767384312831,4.18336856,131.73,131.7,0.71545582]
[1767384315640,0.099,131.75,131.71,0.71545582]
[1767384315947,5.67239285,131.74,131.71,0.71545582]
[1767384316147,3.88009496,131.75,131.71,0.71545582]
[1767384316347,5.67239285,131.74,131.71,0.71545582]
[1767384316540,3.88009496,131.75,131.71,0.71545582]
[1767384316743,9.45428085,131.74,131.71,0.71545582]
[1767384317045,3.78109496,131.74,131.71,0.71545582]
[1767384318727,3.78109496,131.75,131.72,0.71545582]
[1767384318932,0.40840003,131.78,131.72,0.71545582]
[1767384319127,3.88009496,131.77,131.72,0.71545582]
[1767384320233,3.88009496,131.77,131.73,0.71545582]
[1767384320752,18.04949499,131.78,131.73,0.71545582]
[1767384320949,10.77858643,131.77,131.73,0.71545582]
[1767384321252,18.04949499,131.78,131.73,0.71545582]
[1767384321483,10.77919633,131.77,131.73,0.71545582]
[1767384321649,0.40530602,131.79,131.75,0.71545582]
[1767384321849,9.55582247,131.78,131.75,0.71545582]
[1767384322029,3.88315802,131.78,131.75,0.71545582]
[1767384322442,0.10206306,131.78,131.75,0.71545582]
[1767384322946,8.98815468,131.78,131.75,0.71545582]
[1767384323131,0.40840003,131.79,131.75,0.71545582]
[1767384323340,5.67247835,131.78,131.76,0.71545582]
[1767384323538,4.18949499,131.81,131.76,0.71545582]
[1767384323742,10.77502336,131.8,131.76,0.71545582]
[1767384323942,4.18949499,131.81,131.76,0.71545582]
[1767384324149,10.77501846,131.8,131.76,0.71545582]
[1767384324352,4.18949499,131.81,131.76,0.71545582]
[1767384324550,5.66973599,131.8,131.76,8.30480131]
[1767384324753,4.18949499,131.81,131.76,8.30480131]
[1767384325056,4.18949499,131.81,131.77,0.71545582]
[1767384325057,5.66943187,131.8,131.77,0.71545582]
[1767384325243,13.959,131.82,131.77,0.71545582]
[1767384325439,13.959,131.82,131.78,0.71545582]
[1767384325440,13.86,131.82,131.78,0.71545582]
[1767384325641,3.78109496,131.82,131.78,0.71545582]
[1767384326046,0.40530602,131.82,131.78,0.71545582]
[1767384326238,9.28510711,131.82,131.78,0.71545582]
[1767384326440,4.18640098,131.82,131.78,0.71545582]
[1767384326835,3.78109496,131.81,131.78,0.71545582]
[1767384327049,4.18640098,131.82,131.78,8.30378789]
[1767384328439,3.88616012,131.79,131.75,0.66662369]
[1767384328651,3.78109496,131.78,131.75,0.66662369]
[1767384329265,3.88616012,131.79,131.75,8.25675397]
[1767384329462,3.78109496,131.79,131.76,0.66936307]
[1767384330163,7.99453129,131.82,131.76,0.66936307]
[1767384330355,3.78109496,131.79,131.76,0.66936307]
[1767384330854,3.78109496,131.79,131.77,0.66936307]
[1767384331749,3.78109496,131.79,131.75,0.66936307]
[1767384331963,3.78109496,131.77,131.75,0.66936307]
[1767384332759,21.55035445,131.79,131.75,0.66936307]
[1767384332760,3.78109496,131.76,131.75,0.66936307]
[1767384336268,3.78109496,131.76,131.7,26.57462536]
[1767384336483,3.78109496,131.75,131.7,26.57462536]
[1767384337169,0.71070312,131.77,131.7,26.57462536]
[1767384337353,3.78109496,131.75,131.7,26.57462536]
[1767384338253,3.78109496,131.75,131.71,0.66936307]
[1767384339573,3.78109496,131.76,131.73,0.66936307]
[1767384340768,0.71070312,131.8,131.72,26.57151533]
[1767384341067,4.49179808,131.79,131.73,3.78109496]
[1767384341270,4.49179808,131.79,131.74,0.66936307]
[1767384341667,0.71070312,131.79,131.75,8.25949589]
[1767384341971,4.49179808,131.79,131.75,8.25949589]
[1767384342169,4.49179808,131.79,131.75,0.66936307]
[1767384342170,3.78109496,131.77,131.75,0.66936307]
[1767384342555,3.78109496,131.78,131.75,0.66936307]
[1767384343568,3.78109496,131.77,131.75,0.66936307]
[1767384343956,3.78109496,131.77,131.73,7.59100529]
[1767384343957,3.78109496,131.77,131.74,0.66936307]
[1767384344856,4.49179808,131.77,131.74,0.66936307]
[1767384345061,3.78109496,131.76,131.74,0.66936307]
[1767384345267,3.78109496,131.77,131.74,0.66936307]
[1767384346265,0.71070312,131.78,131.73,0.66936307]
[1767384346266,4.49179808,131.76,131.73,0.66936307]
[1767384346569,3.78109496,131.76,131.73,0.66936307]
[1767384346971,3.78109496,131.76,131.73,8.26062149]
[1767384347359,0.71070312,131.79,131.75,0.66936307]
[1767384347555,3.78109496,131.78,131.75,0.66936307]
[1767384349079,3.78109496,131.77,131.75,0.66936307]
[1767384349374,3.78109496,131.77,131.74,0.66936307]
[1767384349977,3.78109496,131.77,131.73,7.59106571]
[1767384349978,4.49179808,131.77,131.73,8.26042878]
[1767384350279,3.78109496,131.75,131.73,0.66936307]
[1767384350481,3.78109496,131.76,131.73,0.66936307]
[1767384353283,4.49179808,131.75,131.71,7.59214439]
[1767384353481,4.49179808,131.75,131.71,8.26150746]
[1767384353859,4.49179808,131.74,131.71,0.66936307]
[1767384354380,0.71070312,131.75,131.71,8.26179483]
[1767384354580,3.78109496,131.74,131.71,8.26179483]
[1767384354779,4.49179808,131.74,131.7,0.66936307]
[1767384354981,3.78109496,131.72,131.69,0.66936307]
[1767384355199,0.71070312,131.73,131.7,0.66936307]
[1767384355362,3.78109496,131.72,131.7,0.66936307]
[1767384359286,0.70980926,131.73,131.7,0.66936307]
[1767384359473,3.78109496,131.72,131.7,0.66936307]
[1767384360166,4.49090422,131.73,131.7,0.66936307]
[1767384360373,3.78109496,131.73,131.7,8.26236334]
[1767384360684,4.49090422,131.73,131.7,8.26236334]
[1767384360903,3.78109496,131.72,131.7,0.66936307]
[1767384361772,0.70980926,131.75,131.71,0.72174959]
[1767384361967,4.49090422,131.75,131.71,0.72174959]
[1767384362295,3.78109496,131.74,131.71,0.72174959]
[1767384362480,2.41881888,131.73,131.7,7.59299826]
[1767384362798,2.41881888,131.73,131.71,0.72174959]
[1767384363387,0.70980926,131.71,131.68,7.59416767]
[1767384363582,2.41881888,131.71,131.69,0.72174959]
[1767384363788,3.12862814,131.72,131.69,0.72174959]
[1767384363998,2.41881888,131.72,131.69,0.72174959]
[1767384364375,2.41881888,131.73,131.69,0.72174959]
[1767384364575,3.12862814,131.74,131.69,0.72174959]
[1767384365072,3.12862814,131.74,131.7,8.31476401]
[1767384365294,0.70980926,131.74,131.7,8.31476401]
[1767384365496,2.41881888,131.73,131.7,8.31476401]
[1767384367175,3.12862814,131.74,131.7,8.31476401]
[1767384367390,3.12862814,131.75,131.71,0.72174959]
[1767384368294,2.41881888,131.74,131.71,0.72174959]
[1767384369380,3.12862814,131.72,131.68,8.31568264]
[1767384369585,2.41881888,131.71,131.68,8.31568264]
[1767384369794,3.12862814,131.71,131.68,8.31568264]
[1767384370697,2.41881888,131.7,131.67,8.31623419]
[1767384370891,2.41881888,131.7,131.68,0.72174959]
[1767384371111,2.41881888,131.7,131.67,8.31623419]
[1767384371312,0.70980926,131.72,131.68,8.31590289]
[1767384371512,2.41881888,131.7,131.68,8.31590289]
[1767384372002,2.41881888,131.71,131.68,8.31590289]
[1767384372790,0.70980926,131.72,131.68,8.31590289]
[1767384372995,2.41881888,131.71,131.68,8.31590289]
[1767384373409,13.86,131.73,131.69,0.72174959]
[1767384373410,3.12862814,131.73,131.69,0.72174959]
[1767384373589,0.70980926,131.73,131.69,0.72174959]
[1767384373789,2.41881888,131.72,131.69,0.72174959]
[1767384374820,3.12862814,131.72,131.69,0.72174959]
[1767384375189,2.41881888,131.72,131.69,0.72174959]
[1767384375408,0.70980926,131.71,131.68,7.5941533]
[1767384376491,0.70980926,131.7,131.67,7.59450857]
[1767384376709,3.12862814,131.7,131.67,7.59450857]
[1767384377213,0.70980926,131.7,131.67,7.59450857]
[1767384377695,0.70980926,131.69,131.66,8.31679424]
[1767384380108,0.70980926,131.69,131.66,7.59504465]
[1767384380311,0.70980926,131.68,131.66,7.59504465]
[1767384381009,0.70980926,131.68,131.64,84.58383634]
[1767384381010,0.70980926,131.67,131.64,84.58383634]
[1767384381210,0.70980926,131.67,131.64,92.17996347]
[1767384381419,0.70980926,131.67,131.64,30.97996347]
[1767384382495,0.70980926,131.7,131.65,0.72174959]
[1767384382697,3.12862814,131.7,131.65,0.72174959]
[1767384383208,0.70980926,131.7,131.66,8.31707087]
[1767384384014,3.12862814,131.68,131.66,7.59532128]
[1767384384214,0.70980926,131.68,131.66,7.59532128]
[1767384384415,2.41881888,131.69,131.66,7.59532128]
[1767384384416,0.70980926,131.69,131.66,7.59532128]
[1767384384617,3.12862814,131.69,131.66,7.59532128]
[1767384385918,0.70980926,131.68,131.65,26.58481139]
[1767384386221,0.70980926,131.67,131.65,7.59589821]
[1767384386521,0.70980926,131.68,131.65,7.59589821]
[1767384387326,2.41881888,131.69,131.66,0.65480185]
[1767384387915,2.41881888,131.68,131.66,0.65480185]
[1767384389821,3.0846918,131.67,131.63,62.07660575]
[1767384390028,2.41881888,131.66,131.63,8.47354352]
[1767384391017,0.66587292,131.67,131.63,8.47354352]
[1767384391318,2.41881888,131.66,131.64,0.67660575]
[1767384393230,2.41881888,131.67,131.64,0.67660575]
[1767384393530,2.41881888,131.67,131.65,0.67660575]
[1767384393907,2.41881888,131.68,131.65,0.67660575]
[1767384394103,2.41881888,131.69,131.65,0.67660575]
[1767384394317,2.41881888,131.7,131.65,0.67660575]
[1767384395037,2.41881888,131.7,131.66,8.27192703]
[1767384395213,2.41881888,131.69,131.66,0.67660575]
[1767384397617,2.41881888,131.68,131.66,0.67660575]
[1767384398640,3.0846918,131.68,131.64,22.13306546]
[1767384398822,2.41881888,131.65,131.63,0.87660575]
[1767384399031,3.0846918,131.64,131.6,0.87660575]
[1767384399342,2.41881888,131.61,131.6,0.2]
[1767384400421,2.41881888,131.62,131.6,0.2]
[1767384400622,3.0846918,131.62,131.6,0.2]
[1767384400817,2.41881888,131.62,131.6,0.2]
[1767384401016,3.0846918,131.63,131.6,0.87660575]
[1767384401224,2.41881888,131.62,131.6,0.2]
[1767384401424,0.66587292,131.63,131.6,7.79875314]
[1767384401638,3.0846918,131.63,131.6,7.79875314]
[1767384401839,2.41881888,131.62,131.6,7.79875314]
[1767384402240,2.41881888,131.63,131.6,8.47535889]
[1767384402537,2.41881888,131.63,131.61,0.67660575]
[1767384403215,2.41881888,131.63,131.6,8.47535889]
[1767384404439,2.41881888,131.62,131.6,8.47535889]
[1767384405313,4.61881888,131.63,131.6,8.47535889]
[1767384406439,5.2846918,131.63,131.6,8.47535889]
[1767384408840,2.41881888,131.62,131.6,8.47535889]
[1767384410036,2.41881888,131.62,131.61,0.67660575]
[1767384410236,2.41881888,131.63,131.61,0.67660575]
[1767384411235,2.41881888,131.63,131.61,8.27472653]
[1767384411437,2.41881888,131.64,131.61,8.27472653]
[1767384411744,5.2846918,131.64,131.61,8.27472653]
[1767384412042,0.66587292,131.68,131.62,0.67660575]
[1767384412219,2.41881888,131.7,131.65,0.67660575]
[1767384412418,3.0846918,131.69,131.65,0.67660575]
[1767384413136,3.0846918,131.69,131.65,8.2719908]
[1767384414825,0.66587292,131.67,131.63,0.67660575]
[1767384415746,0.66587292,131.67,131.63,8.27310981]
[1767384416051,0.66587292,131.67,131.64,0.67660575]
[1767384416227,0.66587292,131.68,131.64,0.67660575]
[1767384417854,0.66587292,131.68,131.64,8.27273766]
[1767384419066,0.66587292,131.68,131.65,8.27214204]
[1767384420242,0.6902528,131.69,131.65,8.27214204]
[1767384420837,0.6902528,131.69,131.65,10.69096092]
[1767384421547,0.6902528,131.73,131.67,0.66181562]
[1767384421732,0.6902528,131.72,131.69,0.66181562]
[1767384421949,0.6902528,131.73,131.69,3.0806345]
[1767384422134,0.6902528,131.73,131.7,3.0806345]
[1767384422334,0.6902528,131.75,131.7,3.0806345]
[1767384422554,0.6902528,131.75,131.71,0.66181562]
[1767384423060,0.6902528,131.76,131.73,7.5912852]
[1767384424960,0.6902528,131.77,131.73,8.25310082]
[1767384425137,4.46761934,131.77,131.73,8.25310082]
[1767384425739,0.6902528,131.76,131.72,8.25342241]
[1767384426038,0.6902528,131.75,131.72,7.59160679]
[1767384426456,0.6902528,131.75,131.72,8.25342241]
[1767384426859,0.6902528,131.74,131.71,8.25412359]
[1767384427160,4.46761934,131.75,131.72,7.59183478]
[1767384427660,4.46761934,131.76,131.72,8.2536504]
[1767384427870,0.6902528,131.76,131.73,0.66181562]
[1767384428660,0.6902528,131.76,131.72,8.2536504]
[1767384429638,0.6902528,131.75,131.72,8.2536504]
[1767384431258,0.6902528,131.76,131.72,8.2536504]
[1767384432963,0.6902528,131.74,131.71,7.59221772]
[1767384433164,0.6902528,131.74,131.71,8.25403334]
[1767384433664,0.6902528,131.75,131.72,7.59179943]
[1767384433865,0.6902528,131.75,131.71,7.5922454]
[1767384434268,0.6902528,131.74,131.71,7.5922454]
[1767384434450,0.6902528,131.74,131.71,8.25406102]
[1767384435272,4.46761934,131.75,131.71,8.25406102]
[1767384435570,0.6902528,131.75,131.71,8.25406102]
[1767384437970,4.46761934,131.76,131.72,0.66181562]
[1767384438153,4.46761934,131.77,131.72,0.66181562]
[1767384438475,0.6902528,131.76,131.72,0.66181562]
[1767384439369,0.6902528,131.76,131.71,30.35070676]
[1767384439370,0.6902528,131.75,131.71,8.25406102]
[1767384439752,0.6902528,131.76,131.71,31.01252238]
[1767384439964,0.6902528,131.75,131.71,7.5922454]
[1767384440569,0.6902528,131.75,131.71,8.25406102]
[1767384440771,0.6902528,131.71,131.67,0.66181562]
[1767384440951,0.6902528,131.68,131.64,14.52181562]
[1767384441151,0.6902528,131.68,131.65,0.66181562]
[1767384441371,4.46761934,131.68,131.65,0.66181562]
[1767384441560,4.46761934,131.68,131.65,8.2575864]
[1767384441962,3.77736654,131.68,131.65,8.2575864]
[1767384442166,4.46761934,131.69,131.65,8.2575864]
[1767384443666,0.6902528,131.7,131.66,0.66181562]
[1767384444971,4.46761934,131.69,131.65,8.2575864]
[1767384445661,0.6902528,131.69,131.65,8.2575864]
[1767384445886,4.46761934,131.69,131.65,8.2575864]
[1767384446768,4.46761934,131.69,131.65,0.66181562]
[1767384446769,0.6902528,131.68,131.65,0.66181562]
[1767384446973,4.46761934,131.68,131.65,0.66181562]
[1767384448674,4.46761934,131.68,131.64,8.30149248]
[1767384449860,0.72329804,131.66,131.63,0.72151044]
[1767384450177,0.72329804,131.66,131.64,7.59642024]
[1767384450475,0.72329804,131.65,131.62,7.59717252]
[1767384450656,0.72329804,131.65,131.61,0.72151044]
[1767384450852,3.77736654,131.65,131.61,0.72151044]
[1767384451072,3.77736654,131.65,131.61,8.31938883]
[1767384451877,3.77736654,131.66,131.62,8.31902376]
[1767384452676,3.77736654,131.66,131.62,7.59751332]
[1767384452876,0.72329804,131.64,131.61,7.5979526]
[1767384453078,0.72329804,131.63,131.6,0.2]
[1767384453277,0.72329804,131.61,131.6,0.2]
[1767384457271,4.50066458,131.62,131.6,0.2]
[1767384459886,3.77736654,131.61,131.6,0.2]
[1767384460581,4.50066458,131.61,131.6,0.2]
[1767384460789,4.50066458,131.6,131.59,0.2]
[1767384461174,3.77736654,131.6,131.59,0.2]
[1767384462796,3.77736654,131.6,131.56,0.2]
[1767384463005,3.77736654,131.58,131.56,7.80102333]
[1767384463177,4.48963694,131.59,131.56,7.80102333]
[1767384469596,4.48963694,131.59,131.56,8.52253377]
[1767384470184,0.7122704,131.59,131.56,8.52253377]
[1767384470495,4.48963694,131.59,131.56,8.52253377]
[1767384474591,4.48963694,131.59,131.56,7.80102333]
[1767384475608,0.72318777,131.58,131.56,7.80102333]
[1767384477701,4.48974611,131.57,131.55,16.99349132]
[1767384477903,3.77736654,131.57,131.55,16.99349132]
[1767384478804,21.47910486,131.6,131.55,16.99349132]
[1767384479006,3.77736654,131.57,131.55,16.99349132]
[1767384480182,4.25373457,131.57,131.55,16.99349132]
[1767384481183,3.77736654,131.58,131.55,25.30168709]
[1767384481395,4.43894981,131.59,131.56,0.70657046]
[1767384481601,0.47636803,131.58,131.55,17.70006178]
[1767384481808,3.77736654,131.58,131.55,25.30173239]
[1767384483212,4.43894981,131.59,131.55,25.30173239]
[1767384483816,13.88,131.6,131.56,0.70657046]
[1767384484010,0.66158327,131.61,131.56,0.70657046]
[1767384484196,4.25373457,131.6,131.56,0.70657046]
[1767384484510,2.90032978,131.6,131.56,0.70657046]
[1767384485096,0.47636803,131.6,131.56,0.70657046]
[1767384485313,0.47636803,131.6,131.57,0.70657046]
[1767384485314,5.65008519,131.59,131.57,0.70657046]
[1767384485606,2.42396175,131.6,131.57,0.70657046]
[1767384485812,2.42396175,131.61,131.58,0.70657046]
[1767384485987,2.42396175,131.6,131.58,0.70657046]
[1767384486192,3.08369286,131.6,131.57,0.70657046]
[1767384487116,0.65973111,131.6,131.56,8.30759873]
[1767384487313,2.42396175,131.59,131.56,8.30759873]
[1767384487498,2.90216342,131.59,131.56,0.70657046]
[1767384487699,3.08187756,131.58,131.55,17.70006178]
[1767384487895,2.42396175,131.56,131.55,16.99349132]
[1767384488212,3.08009839,131.56,131.53,0.90657046]
[1767384488621,2.42396175,131.55,131.53,0.90657046]
[1767384488818,2.42396175,131.54,131.53,0.2]
[1767384489131,2.42396175,131.54,131.52,0.70657046]
[1767384489527,2.42396175,131.56,131.53,0.70657046]
[1767384489724,2.90032978,131.56,131.53,0.70657046]
[1767384490222,0.47636803,131.56,131.52,8.30987884]
[1767384490392,2.90032978,131.56,131.52,8.30987884]
[1767384490593,0.47636803,131.56,131.52,8.30987884]
[1767384490795,2.42396175,131.56,131.53,0.70657046]
[1767384492021,2.42396175,131.56,131.53,8.30938358]
[1767384492326,0.47636803,131.58,131.54,0.70657046]
[1767384492629,2.90032978,131.58,131.54,0.70657046]
[1767384493218,2.90032978,131.58,131.54,8.3085475]
[1767384494622,2.42396175,131.57,131.54,0.70657046]
[1767384495504,2.42396175,131.57,131.54,8.30876559]
[1767384498723,3.08369286,131.57,131.54,8.30876559]
[1767384498902,3.08369286,131.57,131.54,0.70657046]
[1767384499107,3.08369286,131.57,131.53,8.30912476]
[1767384499108,2.42396175,131.56,131.53,8.30912476]
[1767384499505,0.65791581,131.55,131.52,7.60314023]
[1767384499803,2.42396175,131.56,131.53,8.30939866]
[1767384499804,3.08554502,131.56,131.53,8.30939866]
[1767384500017,3.08554502,131.56,131.52,8.30961992]
[1767384500308,2.90032978,131.55,131.52,0.70657046]
[1767384501668,2.42396175,131.55,131.53,0.70657046]
[1767384503635,3.08554502,131.56,131.53,0.70657046]
[1767384505133,2.42396175,131.55,131.53,0.70657046]
[1767384505637,2.90032978,131.55,131.51,0.70657046]
[1767384505933,3.08369286,131.54,131.51,7.60390036]
[1767384506437,3.08369286,131.54,131.51,8.31047082]
[1767384507525,3.10896138,131.55,131.52,0.6982361]
[1767384509240,0.68499963,131.55,131.52,0.6982361]
[1767384509541,3.10896138,131.55,131.52,0.6982361]
[1767384509923,3.10896138,131.55,131.51,8.74745934]
[1767384510739,14.57084863,131.56,131.52,0.68753674]
[1767384510942,2.87135707,131.57,131.52,0.68753674]
[1767384511135,2.42396175,131.57,131.52,0.68753674]
[1767384512027,2.87135707,131.58,131.54,0.68753674]
[1767384512236,5.67995354,131.57,131.54,0.68753674]
[1767384512430,0.6884141,131.57,131.54,0.68753674]
[1767384512634,3.08237585,131.57,131.54,0.68753674]
[1767384514649,3.08237585,131.57,131.54,8.28959878]
[1767384515034,2.42396175,131.57,131.54,8.28959878]